fUSD/lending_fUSD_20240718
["ID","MTS","AMOUNT","RATE_DAILY","PERIOD"]
[332597408,1721328641350,-500.0,0.00032876,14]
[332597409,1721328641360,-392.47618145,0.00032876,14]
[332597410,1721328641369,-500.0,0.00032876,14]
[332597411,1721328641378,-500.0,0.00032876,14]
[332597412,1721328641387,-1239.52,0.00032876,14]
[332597413,1721328641397,-783.18,0.00032876,14]
[332597414,1721328641408,-500.0,0.00032876,14]
[332597415,1721328641417,-500.0,0.00032876,14]
[332597416,1721328641427,-500.0,0.00032876,14]
[332597417,1721328641436,-500.0,0.00032876,14]
[332597418,1721328641446,-500.0,0.00032876,14]
[332597419,1721328641455,-500.0,0.00032876,14]
[332597420,1721328641465,-500.0,0.00032876,14]
[332597421,1721328641474,-965.16,0.00032876,14]
[332597422,1721328641483,-500.0,0.00032876,14]
[332597423,1721328641492,-500.0,0.00032876,14]
[332597424,1721328641501,-500.0,0.00032876,14]
[332597425,1721328641511,-1185.47,0.00032876,14]
[332597426,1721328641523,-535.01,0.00032876,14]
[332597427,1721328641532,-1039.01,0.00032876,14]
[332597428,1721328641543,-500.0,0.00032876,14]
[332597429,1721328641553,-500.0,0.00032876,14]
[332597430,1721328641562,-743.41,0.00032876,14]
[332597431,1721328641571,-500.0,0.00032876,14]
[332597432,1721328641582,-500.0,0.00032876,14]
[332597433,1721328641591,-2019.72,0.00032876,14]
[332597434,1721328641601,-500.0,0.00032876,14]
[332597435,1721328641611,-500.0,0.00032876,14]
[332597436,1721328641623,-500.0,0.00032876,14]
[332597437,1721328641635,-500.0,0.00032876,14]
[332597438,1721328641645,-500.0,0.00032876,14]
[332597439,1721328641655,-500.0,0.00032876,14]
[332597440,1721328641664,-500.0,0.00032876,14]
[332597441,1721328641674,-739.28,0.00032876,14]
[332597442,1721328641684,-500.0,0.00032876,14]
[332597443,1721328641695,-500.0,0.00032876,14]
[332597444,1721328641704,-701.41,0.00032876,14]
[332597445,1721328641714,-500.0,0.00032876,14]
[332597446,1721328641724,-500.0,0.00032876,14]
[332597447,1721328641734,-500.0,0.00032876,14]
[332597448,1721328641745,-2371.16,0.00032876,14]
[332597449,1721328641756,-614.12,0.00032876,14]
[332597450,1721328641766,-1299.34,0.00032876,14]
[332597451,1721328641775,-1033.25,0.00032876,14]
[332597452,1721328641784,-1907.64,0.00032876,14]
[332597453,1721328641794,-189.216088,0.00032876,7]
[332597454,1721328641803,-189.216088,0.00032876,7]
[332597455,1721328641814,-189.216088,0.00032876,7]
[332597456,1721328641824,-977.53,0.00032876,14]
[332597457,1721328641833,-189.216088,0.00032876,7]
[332597458,1721328641843,-189.216088,0.00032876,7]
[332597459,1721328641852,-189.216088,0.00032876,7]
[332597460,1721328641862,-189.216088,0.00032876,7]
[332597461,1721328641871,-189.216088,0.00032876,7]
[332597462,1721328641881,-189.216088,0.00032876,7]
[332597463,1721328641890,-189.216088,0.00032876,7]
[332597464,1721328641900,-189.216088,0.00032876,7]
[332597465,1721328641910,-189.216088,0.00032876,7]
[332597466,1721328641922,-500.0,0.00032876,14]
[332597467,1721328641933,-500.0,0.00032876,14]
[332597468,1721328641943,-500.0,0.00032876,14]
[332597469,1721328641953,-500.0,0.00032876,14]
[332597470,1721328641963,-500.0,0.00032876,14]
[332597471,1721328641973,-1718.93,0.00032876,14]
[332597472,1721328641982,-500.0,0.00032876,14]
[332597473,1721328641995,-500.0,0.00032876,14]
[332597474,1721328642004,-558.78726441,0.00032876,14]
[332597475,1721328642015,-500.0,0.00032876,14]
[332597476,1721328642025,-521.17,0.00032876,14]
[332597477,1721328642034,-500.0,0.00032876,14]
[332597478,1721328642044,-894.7,0.00032876,14]
[332597479,1721328642053,-500.0,0.00032876,14]
[332597480,1721328642062,-500.0,0.00032876,14]
[332597481,1721328642071,-460.528522,0.00032876,7]
[332597482,1721328642080,-500.0,0.00032876,14]
[332597483,1721328642090,-460.528522,0.00032876,7]
[332597484,1721328642099,-460.528522,0.00032876,7]
[332597485,1721328642108,-460.528522,0.00032876,7]
[332597486,1721328642118,-500.0,0.00032876,14]
[332597487,1721328642127,-500.0,0.00032876,14]
[332597488,1721328642136,-460.528522,0.00032876,7]
[332597489,1721328642145,-500.0,0.00032876,14]
[332597490,1721328642155,-460.528522,0.00032876,7]
[332597491,1721328642164,-2270.65,0.00032876,14]
[332597492,1721328642174,-460.528522,0.00032876,7]
[332597493,1721328642183,-460.528522,0.00032876,7]
[332597494,1721328642191,-500.0,0.00032876,14]
[332597495,1721328642201,-500.0,0.00032876,14]
[332597496,1721328642210,-460.528522,0.00032876,7]
[332597497,1721328642220,-500.0,0.00032876,14]
[332597498,1721328642229,-366.64930551,0.00032876,7]
[332597499,1721328642239,-460.528522,0.00032876,7]
[332597500,1721328642248,-460.528522,0.00032876,7]
[332597501,1721328642257,-460.528522,0.00032876,7]
[332597502,1721328642266,-969.15,0.00032876,14]
[332597503,1721328642276,-500.0,0.00032876,14]
[332597504,1721328642286,-500.0,0.00032876,14]
[332597505,1721328642295,-500.0,0.00032876,14]
[332597506,1721328642305,-500.0,0.00032876,14]
[332597507,1721328642314,-500.0,0.00032876,14]
[332597508,1721328642324,-500.0,0.00032876,14]
[332597509,1721328642333,-500.0,0.00032876,14]
[332597510,1721328642343,-267.80497396,0.00032876,14]
[332597511,1721328642352,-500.0,0.00032876,14]
[332597512,1721328642363,-502.84429808,0.00032876,14]
[332597513,1721328642372,-575.81,0.00032876,14]
[332597514,1721328642382,-500.0,0.00032876,2]
[332597515,1721328642391,-500.0,0.00032876,14]
[332597516,1721328642401,-1079.56,0.00032876,14]
[332597517,1721328642412,-885.38,0.00032876,14]
[332597518,1721328642421,-682.21,0.00032876,14]
[332597519,1721328642434,-797.19,0.00032876,14]
[332597520,1721328642444,-500.0,0.00032876,14]
[332597521,1721328642453,-500.0,0.00032876,14]
[332597522,1721328642463,-500.0,0.00032876,14]
[332597523,1721328642472,-500.0,0.00032876,14]
[332597524,1721328642482,-500.0,0.00032876,14]
[332597525,1721328642491,-502.48034649,0.00032876,14]
[332597526,1721328642500,-500.0,0.00032876,14]
[332597527,1721328642509,-575.03,0.00032876,14]
[332597528,1721328642518,-857.72,0.00032876,14]
[332597529,1721328642527,-895.93,0.00032876,14]
[332597530,1721328642537,-500.0,0.00032876,14]
[332597531,1721328642547,-564.94,0.00032876,14]
[332597532,1721328642556,-1521.38,0.00032876,14]
[332597533,1721328642566,-500.0,0.00032876,14]
[332597534,1721328642575,-848.46,0.00032876,14]
[332597535,1721328642585,-500.0,0.00032876,14]
[332597536,1721328642594,-500.0,0.00032876,14]
[332597537,1721328642603,-500.0,0.00032876,14]
[332597538,1721328642613,-500.0,0.00032876,14]
[332597539,1721328642622,-639.23,0.00032876,14]
[332597540,1721328642632,-500.0,0.00032876,14]
[332597541,1721328642641,-500.0,0.00032876,14]
[332597542,1721328642650,-500.0,0.00032876,14]
[332597543,1721328642660,-500.0,0.00032876,14]
[332597544,1721328642670,-755.4,0.00032876,14]
[332597545,1721328642679,-950.17,0.00032876,14]
[332597546,1721328642688,-225.97950053,0.00032876,14]
[332597547,1721328642697,-904.35,0.00032876,14]
[332597548,1721328642707,-535.59,0.00032876,14]
[332597549,1721328642717,-500.0,0.00032876,14]
[332597550,1721328642726,-500.0,0.00032876,14]
[332597551,1721328642735,-500.0,0.00032876,14]
[332597552,1721328642745,-500.0,0.00032876,14]
[332597553,1721328642755,-500.0,0.00032876,14]
[332597554,1721328642764,-500.0,0.00032876,14]
[332597555,1721328642774,-1796.85,0.00032876,14]
[332597556,1721328642784,-500.0,0.00032876,14]
[332597557,1721328642793,-500.0,0.00032876,14]
[332597558,1721328642803,-500.0,0.00032876,14]
[332597560,1721328642813,-151.0,0.00032876,7]
[332597561,1721328642823,-151.0,0.00032876,7]
[332597563,1721328642832,-500.0,0.00032876,14]
[332597565,1721328642841,-151.0,0.00032876,7]
[332597567,1721328642851,-151.0,0.00032876,7]
[332597569,1721328642860,-151.0,0.00032876,7]
[332597571,1721328642869,-1344.78,0.00032876,14]
[332597574,1721328642879,-500.0,0.00032876,14]
[332597576,1721328642888,-500.0,0.00032876,14]
[332597577,1721328642897,-500.0,0.00032876,14]
[332597578,1721328642907,-500.0,0.00032876,14]
[332597580,1721328642918,-500.0,0.00032876,14]
[332597582,1721328642929,-500.0,0.00032876,14]
[332597584,1721328642939,-1160.03,0.00032876,14]
[332597586,1721328642948,-597.76,0.00032876,14]
[332597587,1721328642959,-500.0,0.00032876,14]
[332597588,1721328642968,-810.13,0.00032876,14]
[332597589,1721328642978,-500.0,0.00032876,14]
[332597590,1721328642990,-500.0,0.00032876,14]
[332597591,1721328643002,-200.0,0.00032876,2]
[332597592,1721328643012,-500.0,0.00032876,14]
[332597593,1721328643021,-500.0,0.00032876,14]
[332597594,1721328643031,-500.0,0.00032876,14]
[332597595,1721328643040,-1999.89,0.00032876,14]
[332597596,1721328643049,-500.0,0.00032876,14]
[332597597,1721328643059,-588.71,0.00032876,14]
[332597598,1721328643068,-500.0,0.00032876,2]
[332597599,1721328643077,-500.0,0.00032876,14]
[332597600,1721328643086,-500.0,0.00032876,14]
[332597601,1721328643096,-500.0,0.00032876,14]
[332597602,1721328643105,-493.21116485,0.00032876,14]
[332597603,1721328643115,-500.0,0.00032876,14]
[332597604,1721328643124,-500.0,0.00032876,14]
[332597605,1721328643133,-500.0,0.00032876,14]
[332597606,1721328643143,-500.0,0.00032876,14]
[332597607,1721328643153,-500.0,0.00032876,14]
[332597608,1721328643163,-500.0,0.00032876,14]
[332597609,1721328643172,-500.0,0.00032876,14]
[332597610,1721328643181,-500.0,0.00032876,14]
[332597611,1721328643190,-500.0,0.00032876,14]
[332597612,1721328643200,-500.0,0.00032876,14]
[332597613,1721328643209,-500.0,0.00032876,14]
[332597614,1721328643218,-500.0,0.00032876,14]
[332597615,1721328643228,-526.17,0.00032876,14]
[332597616,1721328643238,-184.88922827,0.00032876,14]
[332597617,1721328643247,-500.0,0.00032876,14]
[332597618,1721328643256,-500.0,0.00032876,14]
[332597619,1721328643265,-500.0,0.00032876,14]
[332597620,1721328643274,-500.0,0.00032876,2]
[332597621,1721328643284,-500.0,0.00032876,14]
[332597622,1721328643293,-500.0,0.00032876,14]
[332597623,1721328643303,-613.20070541,0.00032876,14]
[332597624,1721328643312,-500.0,0.00032876,14]
[332597625,1721328643321,-434.02812895,0.00032876,14]
[332597626,1721328643331,-500.0,0.00032876,14]
[332597627,1721328643340,-500.0,0.00032876,14]
[332597628,1721328643350,-500.0,0.00032876,14]
[332597629,1721328643361,-500.0,0.00032876,14]
[332597630,1721328643371,-500.0,0.00032876,14]
[332597631,1721328643385,-500.0,0.00032876,14]
[332597632,1721328643394,-669.5,0.00032876,14]
[332597633,1721328643404,-500.0,0.00032876,14]
[332597634,1721328643414,-500.0,0.00032876,14]
[332597635,1721328643423,-500.0,0.00032876,14]
[332597636,1721328643433,-500.0,0.00032876,14]
[332597637,1721328643441,-1019.15,0.00032876,14]
[332597638,1721328643451,-500.0,0.00032876,14]
[332597639,1721328643460,-1720.87,0.00032876,14]
[332597640,1721328643469,-500.0,0.00032876,14]
[332597641,1721328643479,-1860.78,0.00032876,14]
[332597644,1721328643488,-500.0,0.00032876,14]
[332597646,1721328643498,-500.0,0.00032876,14]
[332597647,1721328643508,-500.0,0.00032876,14]
[332597648,1721328643518,-500.0,0.00032876,14]
[332597649,1721328643529,-500.0,0.00032876,14]
[332597651,1721328643540,-500.0,0.00032876,14]
[332597653,1721328643551,-817.1,0.00032876,14]
[332597655,1721328643561,-500.0,0.00032876,14]
[332597657,1721328643572,-560.4661591,0.00032876,14]
[332597658,1721328643582,-200.0,0.00032876,2]
[332597659,1721328643591,-723.12,0.00032876,14]
[332597660,1721328643601,-500.0,0.00032876,14]
[332597661,1721328643611,-327.02690562,0.00032876,14]
[332597662,1721328643620,-645.83,0.00032876,14]
[332597663,1721328643630,-500.0,0.00032876,14]
[332597664,1721328643639,-940.7,0.00032876,14]
[332597665,1721328643649,-750.13,0.00032876,14]
[332597666,1721328643662,-1237.39,0.00032876,14]
[332597667,1721328643673,-2611.52,0.00032876,14]
[332597668,1721328643682,-502.33,0.00032876,14]
[332597669,1721328643692,-500.0,0.00032876,14]
[332597670,1721328643702,-500.0,0.00032876,14]
[332597671,1721328643712,-500.0,0.00032876,14]
[332597672,1721328643723,-500.0,0.00032876,14]
[332597673,1721328643734,-2066.7,0.00032876,2]
[332597674,1721328643744,-500.0,0.00032876,14]
[332597675,1721328643755,-1402.09,0.00032876,14]
[332597676,1721328643766,-500.0,0.00032876,14]
[332597677,1721328643776,-500.0,0.00032876,14]
[332597678,1721328643786,-500.0,0.00032876,14]
[332597679,1721328643796,-500.0,0.00032876,14]
[332597680,1721328643805,-896.03,0.00032876,14]
[332597681,1721328643816,-887.74,0.00032876,14]
[332597682,1721328643826,-500.0,0.00032876,14]
[332597683,1721328643835,-763.53,0.00032876,14]
[332597684,1721328643846,-500.0,0.00032876,14]
[332597685,1721328643856,-500.0,0.00032876,14]
[332597686,1721328643865,-500.0,0.00032876,14]
[332597687,1721328643875,-1921.88,0.00032876,14]
[332597688,1721328643886,-500.0,0.00032876,14]
[332597689,1721328643896,-500.0,0.00032876,14]
[332597690,1721328643908,-797.05,0.00032876,14]
[332597691,1721328643920,-1658.15,0.00032876,14]
[332597692,1721328643931,-2321.77,0.00032876,14]
[332597693,1721328643941,-500.0,0.00032876,14]
[332597694,1721328643950,-500.0,0.00032876,14]
[332597695,1721328643959,-523.63,0.00032876,14]
[332597696,1721328643970,-245.182331,0.00032876,7]
[332597697,1721328643979,-245.182331,0.00032876,7]
[332597698,1721328643992,-245.182331,0.00032876,7]
[332597699,1721328644002,-500.0,0.00032876,14]
[332597700,1721328644012,-245.182331,0.00032876,7]
[332597701,1721328644022,-245.182331,0.00032876,7]
[332597702,1721328644031,-500.0,0.00032876,14]
[332597703,1721328644041,-245.182331,0.00032876,7]
[332597704,1721328644051,-566.5,0.00032876,14]
[332597705,1721328644060,-245.182331,0.00032876,7]
[332597706,1721328644070,-245.182331,0.00032876,7]
[332597707,1721328644079,-617.06,0.00032876,14]
[332597708,1721328644089,-245.182331,0.00032876,7]
[332597709,1721328644098,-1838.9,0.00032876,14]
[332597710,1721328644108,-245.182331,0.00032876,7]
[332597711,1721328644118,-245.182331,0.00032876,7]
[332597712,1721328644129,-500.0,0.00032876,14]
[332597713,1721328644139,-245.182331,0.00032876,7]
[332597714,1721328644363,-649.17699517,0.00032876,2]
[332597715,1721328644373,-500.0,0.00032876,14]
[332597716,1721328644383,-1149.19,0.00032876,14]
[332597717,1721328644392,-500.0,0.00032876,14]
[332597718,1721328644401,-1109.2,0.00032876,14]
[332597719,1721328644411,-696.102269,0.00032876,7]
[332597720,1721328644420,-500.0,0.00032876,14]
[332597721,1721328644429,-696.102269,0.00032876,7]
[332597722,1721328644439,-696.102269,0.00032876,7]
[332597723,1721328644448,-696.102269,0.00032876,7]
[332597724,1721328644458,-500.0,0.00032876,14]
[332597725,1721328644468,-696.102269,0.00032876,7]
[332597726,1721328644477,-696.102269,0.00032876,7]
[332597727,1721328644487,-500.0,0.00032876,14]
[332597728,1721328644496,-610.48,0.00032876,14]
[332597729,1721328644505,-541.32,0.00032876,14]
[332597730,1721328644515,-500.0,0.00032876,14]
[332597731,1721328644525,-615.72,0.00032876,14]
[332597732,1721328644534,-961.01,0.00032876,14]
[332597733,1721328644543,-500.0,0.00032876,14]
[332597734,1721328644552,-500.0,0.00032876,14]
[332597735,1721328644561,-1140.99,0.00032876,14]
[332597736,1721328644570,-500.0,0.00032876,14]
[332597737,1721328644579,-1146.87,0.00032876,14]
[332597738,1721328644589,-500.0,0.00032876,14]
[332597739,1721328644598,-497.03133282,0.00032876,14]
[332597740,1721328644608,-2237.46,0.00032876,14]
[332597741,1721328644618,-500.0,0.00032876,14]
[332597742,1721328644627,-500.0,0.00032876,14]
[332597743,1721328644637,-883.02,0.00032876,14]
[332597744,1721328644647,-500.0,0.00032876,14]
[332597745,1721328644657,-500.0,0.00032876,14]
[332597746,1721328644667,-500.0,0.00032876,14]
[332597747,1721328644676,-580.01174958,0.00032876,14]
[332597748,1721328644686,-620.21,0.00032876,14]
[332597749,1721328644695,-151.0,0.00032876,7]
[332597750,1721328644706,-1681.73,0.00032876,14]
[332597751,1721328644715,-151.0,0.00032876,7]
[332597752,1721328644725,-500.0,0.00032876,14]
[332597753,1721328644735,-151.0,0.00032876,7]
[332597754,1721328644745,-816.51,0.00032876,14]
[332597755,1721328644755,-151.0,0.00032876,7]
[332597756,1721328644765,-300.635816,0.00032876,7]
[332597757,1721328644775,-2106.65,0.00032876,14]
[332597758,1721328644785,-555.16230675,0.00032876,14]
[332597759,1721328644796,-500.0,0.00032876,14]
[332597760,1721328644807,-500.0,0.00032876,14]
[332597761,1721328644818,-2876.82,0.00032876,14]
[332597762,1721328644829,-500.0,0.00032876,14]
[332597763,1721328644839,-500.0,0.00032876,14]
[332597764,1721328644849,-645.32,0.00032876,14]
[332597765,1721328644859,-1057.86,0.00032876,14]
[332597766,1721328644868,-500.0,0.00032876,14]
[332597767,1721328644878,-500.0,0.00032876,14]
[332597768,1721328644887,-500.0,0.00032876,14]
[332597769,1721328644897,-770.51,0.00032876,14]
[332597770,1721328644908,-1693.42,0.00032876,14]
[332597771,1721328644922,-516.71,0.00032876,14]
[332597772,1721328644932,-500.0,0.00032876,14]
[332597773,1721328644942,-500.0,0.00032876,14]
[332597774,1721328644952,-500.0,0.00032876,2]
[332597775,1721328644963,-500.0,0.00032876,14]
[332597776,1721328644973,-500.0,0.00032876,14]
[332597777,1721328644982,-500.0,0.00032876,14]
[332597778,1721328644995,-500.0,0.00032876,14]
[332597779,1721328645005,-500.0,0.00032876,14]
[332597780,1721328645015,-500.0,0.00032876,14]
[332597781,1721328645024,-500.0,0.00032876,14]
[332597782,1721328645034,-557.99,0.00032876,14]
[332597783,1721328645043,-500.0,0.00032876,14]
[332597784,1721328645054,-500.0,0.00032876,14]
[332597785,1721328645064,-151.0,0.00032876,7]
[332597786,1721328645074,-500.0,0.00032876,14]
[332597787,1721328645084,-500.0,0.00032876,14]
[332597788,1721328645093,-151.0,0.00032876,7]
[332597789,1721328645103,-502.51316615,0.00032876,14]
[332597790,1721328645113,-194.30656,0.00032876,7]
[332597791,1721328645122,-880.49,0.00032876,14]
[332597792,1721328645132,-500.0,0.00032876,14]
[332597793,1721328645141,-500.0,0.00032876,14]
[332597794,1721328645150,-2600.41,0.00032876,14]
[332597795,1721328645161,-1441.06,0.00032876,14]
[332597796,1721328645170,-500.0,0.00032876,14]
[332597797,1721328645179,-500.0,0.00032876,14]
[332597798,1721328645189,-500.0,0.00032876,14]
[332597799,1721328645198,-500.0,0.00032876,14]
[332597800,1721328645209,-500.0,0.00032876,14]
[332597801,1721328645219,-500.0,0.00032876,14]
[332597802,1721328645228,-2775.49,0.00032876,14]
[332597803,1721328645237,-520.83,0.00032876,14]
[332597804,1721328645247,-500.0,0.00032876,14]
[332597805,1721328645256,-500.0,0.00032876,14]
[332597806,1721328645265,-1501.0,0.00032876,14]
[332597807,1721328645274,-500.0,0.00032876,14]
[332597808,1721328645283,-500.0,0.00032876,14]
[332597809,1721328645292,-500.0,0.00032876,14]
[332597810,1721328645302,-500.0,0.00032876,14]
[332597811,1721328645311,-500.0,0.00032876,14]
[332597812,1721328645321,-638.47,0.00032876,14]
[332597813,1721328645330,-500.0,0.00032876,14]
[332597814,1721328645339,-511.48748273,0.00032876,14]
[332597815,1721328645349,-151.0,0.00032876,7]
[332597816,1721328645359,-1481.04,0.00032876,14]
[332597817,1721328645369,-151.0,0.00032876,7]
[332597818,1721328645378,-500.0,0.00032876,14]
[332597819,1721328645388,-151.0,0.00032876,7]
[332597820,1721328645397,-245.174805,0.00032876,7]
[332597821,1721328645408,-2035.93,0.00032876,14]
[332597822,1721328645418,-1006.54,0.00032876,14]
[332597823,1721328645428,-500.0,0.00032876,14]
[332597824,1721328645438,-500.0,0.00032876,14]
[332597825,1721328645447,-500.0,0.00032876,14]
[332597826,1721328645457,-500.0,0.00032876,14]
[332597827,1721328645466,-500.0,0.00032876,14]
[332597828,1721328645476,-500.0,0.00032876,14]
[332597829,1721328645486,-500.0,0.00032876,14]
[332597830,1721328645496,-151.0,0.00032876,7]
[332597831,1721328645506,-270.521456,0.00032876,7]
[332597832,1721328645516,-1529.02,0.00032876,14]
[332597833,1721328645526,-500.0,0.00032876,14]
[332597834,1721328645535,-500.0,0.00032876,14]
[332597835,1721328645545,-2796.28,0.00032876,14]
[332597836,1721328645554,-500.0,0.00032876,14]
[332597837,1721328645564,-600.91,0.00032876,14]
[332597838,1721328645574,-500.0,0.00032876,14]
[332597839,1721328645583,-500.0,0.00032876,14]
[332597840,1721328645592,-604.56,0.00032876,14]
[332597841,1721328645602,-500.0,0.00032876,14]
[332597842,1721328645612,-500.0,0.00032876,14]
[332597843,1721328645621,-500.0,0.00032876,14]
[332597844,1721328645631,-2192.7,0.00032876,14]
[332597845,1721328645640,-500.0,0.00032876,14]
[332597846,1721328645650,-500.0,0.00032876,14]
[332597847,1721328645661,-500.0,0.00032876,14]
[332597848,1721328645670,-500.0,0.00032876,14]
[332597849,1721328645680,-500.0,0.00032876,14]
[332597850,1721328645690,-500.0,0.00032876,14]
[332597851,1721328645699,-500.0,0.00032876,14]
[332597852,1721328645709,-500.0,0.00032876,14]
[332597853,1721328645718,-500.0,0.00032876,14]
[332597854,1721328645728,-3776.45,0.00032876,14]
[332597855,1721328645737,-856.04,0.00032876,14]
[332597857,1721328645747,-500.0,0.00032876,14]
[332597859,1721328645757,-586.75319284,0.00032876,14]
[332597861,1721328645766,-500.0,0.00032876,14]
[332597862,1721328645776,-500.0,0.00032876,14]
[332597864,1721328645786,-1101.04,0.00032876,14]
[332597866,1721328645796,-2242.77,0.00032876,14]
[332597867,1721328645805,-1703.86,0.00032876,14]
[332597868,1721328645815,-1080.65,0.00032876,14]
[332597869,1721328645824,-500.0,0.00032876,14]
[332597870,1721328645834,-500.0,0.00032876,14]
[332597871,1721328645843,-1312.27,0.00032876,14]
[332597872,1721328645853,-500.0,0.00032876,14]
[332597873,1721328645862,-2380.82,0.00032876,14]
[332597874,1721328645872,-500.0,0.00032876,14]
[332597875,1721328645881,-471.81883046,0.00032876,2]
[332597876,1721328645891,-537.05,0.00032876,14]
[332597877,1721328645901,-948.57,0.00032876,14]
[332597878,1721328645915,-2119.86,0.00032876,14]
[332597879,1721328645932,-845.76,0.00032876,14]
[332597880,1721328645944,-1160.66,0.00032876,14]
[332597881,1721328645954,-1131.55,0.00032876,14]
[332597882,1721328645966,-500.0,0.00032876,14]
[332597883,1721328645976,-2368.37,0.00032876,14]
[332597884,1721328645988,-500.0,0.00032876,14]
[332597885,1721328646000,-2227.84,0.00032876,14]
[332597886,1721328646011,-500.0,0.00032876,14]
[332597887,1721328646023,-1000.0,0.00032876,14]
[332597888,1721328646032,-500.0,0.00032876,14]
[332597889,1721328646042,-1047.62,0.00032876,14]
[332597890,1721328646051,-700.86,0.00032876,14]
[332597891,1721328646062,-500.0,0.00032876,14]
[332597892,1721328646072,-500.0,0.00032876,14]
[332597893,1721328646082,-4074.75,0.00032876,14]
[332597894,1721328646092,-500.0,0.00032876,14]
[332597895,1721328646101,-500.0,0.00032876,14]
[332597896,1721328646111,-1683.39,0.00032876,14]
[332597897,1721328646120,-500.0,0.00032876,14]
[332597898,1721328646130,-2142.59,0.00032876,14]
[332597899,1721328646140,-500.0,0.00032876,14]
[332597900,1721328646150,-500.0,0.00032876,14]
[332597901,1721328646161,-1328.68,0.00032876,14]
[332597902,1721328646171,-1447.53,0.00032876,14]
[332597903,1721328646180,-1128.07,0.00032876,14]
[332597904,1721328646190,-623.35,0.00032876,14]
[332597905,1721328646201,-500.0,0.00032876,14]
[332597906,1721328646210,-500.0,0.00032876,14]
[332597907,1721328646220,-1744.5,0.00032876,14]
[332597908,1721328646229,-500.0,0.00032876,14]
[332597909,1721328646239,-803.75,0.00032876,14]
[332597910,1721328646248,-1031.4,0.00032876,14]
[332597911,1721328646257,-500.0,0.00032876,14]
[332597912,1721328646267,-635.35,0.00032876,14]
[332597913,1721328646277,-500.0,0.00032876,14]
[332597914,1721328646286,-548.48,0.00032876,14]
[332597915,1721328646296,-2142.03,0.00032876,14]
[332597916,1721328646305,-517.05,0.00032876,14]
[332597917,1721328646316,-925.04,0.00032876,14]
[332597918,1721328646325,-500.0,0.00032876,14]
[332597919,1721328646334,-500.0,0.00032876,14]
[332597920,1721328646344,-2418.86,0.00032876,14]
[332597921,1721328646353,-500.0,0.00032876,14]
[332597922,1721328646363,-1527.32,0.00032876,14]
[332597923,1721328646372,-896.31,0.00032876,14]
[332597924,1721328646382,-500.0,0.00032876,14]
[332597925,1721328646392,-1103.95,0.00032876,14]
[332597926,1721328646401,-1179.46,0.00032876,14]
[332597927,1721328646414,-880.7,0.00032876,14]
[332597928,1721328646423,-500.0,0.00032876,14]
[332597929,1721328646433,-637.15,0.00032876,14]
[332597930,1721328646443,-2105.79,0.00032876,14]
[332597932,1721328646452,-380.96331119,0.00032876,14]
[332597934,1721328646461,-500.0,0.00032876,14]